bitfinex/quotes_SOLUSD_20240816
["timestamp","ask_amount","ask_price","bid_price","bid_amount"]
[1723817534925,0.12549,140.06,139.93,382.4]
[1723817535115,20.25098,140.06,139.93,382.4]
[1723817535288,0.25098,140.06,139.93,402.4]
[1723817535490,0.12549,140.06,139.94,1.42787143]
[1723817535909,0.25098,140.06,139.94,1.42787143]
[1723817536215,0.25098,140.06,139.95,0.37647]
[1723817536420,0.25098,140.06,139.96,1.42766739]
[1723817536601,0.12549,140.06,139.97,0.12549]
[1723817536936,0.12549,140.05,139.95,0.25098]
[1723817537120,0.25098,140.06,139.95,0.25098]
[1723817537324,0.25098,140.06,139.93,382.4]
[1723817537628,75.25098,140.06,139.93,382.4]
[1723817537819,0.12549,140.04,139.93,382.4]
[1723817538015,0.25098,140.04,139.93,382.4]
[1723817538325,0.25098,140.04,139.94,1.42827002]
[1723817538505,0.869,140.03,139.93,382.4]
[1723817538705,0.25098,140.02,139.93,382.4]
[1723817539508,0.25098,140.02,139.94,1.42796145]
[1723817539845,0.12549,140.02,139.94,1.42796145]
[1723817540027,0.869,140.03,139.94,383.82796145]
[1723817540234,0.869,140.06,139.97,0.12549]
[1723817540410,0.869,140.06,139.95,45.37647]
[1723817540919,0.869,140.06,139.95,45.12549]
[1723817541119,0.869,140.06,139.95,45.0]
[1723817541522,0.25098,140.05,139.95,45.0]
[1723817543216,45.25098,140.05,139.95,45.0]
[1723817543422,0.12549,140.03,139.95,45.0]
[1723817543629,0.25098,140.03,139.95,45.0]
[1723817543938,0.25098,140.03,139.94,382.4]
[1723817544124,0.12549,140.01,139.94,382.4]
[1723817544443,0.25098,140.01,139.94,382.4]
[1723817545031,0.869,140.02,139.94,382.4]
[1723817545334,0.12549,140.01,139.94,382.4]
[1723817545715,0.25098,140.01,139.94,382.4]
[1723817546019,0.25098,140.01,139.9,398.5377]
[1723817546225,0.25098,140.01,139.91,45.25098]
[1723817546544,7.71275503,140.01,139.89,0.8336353]
[1723817546717,0.12549,139.99,139.89,0.8336353]
[1723817547049,0.25098,139.99,139.89,0.8336353]
[1723817547842,30.25098,139.99,139.89,0.8336353]
[1723817548020,0.12549,139.97,139.89,0.8336353]
[1723817548350,0.12549,139.94,139.89,0.8336353]
[1723817548755,0.25098,139.94,139.89,0.8336353]
[1723817549050,0.12549,139.92,139.89,0.8336353]
[1723817549213,0.25098,139.92,139.89,0.8336353]
[1723817549614,20.12549,139.92,139.89,0.8336353]
[1723817550052,30.0,139.9,139.89,0.8336353]
[1723817550355,50.0,139.9,139.89,0.8336353]
[1723817551145,50.12549,139.9,139.89,0.8336353]
[1723817551328,50.12549,139.9,139.81,640.2]
[1723817551329,0.869,139.88,139.81,382.4]
[1723817551527,0.12549,139.85,139.76,382.4]
[1723817551734,20.25098,139.85,139.76,382.4]
[1723817552270,21.37706035,139.85,139.75,0.8336353]
[1723817552561,30.0,139.82,139.75,0.8336353]
[1723817552722,20.0,139.81,139.75,0.8336353]
[1723817553657,30.0,139.8,139.75,0.8336353]
[1723817553868,20.0,139.79,139.75,0.8336353]
[1723817554361,0.25098,139.78,139.75,0.8336353]
[1723817554524,30.0,139.77,139.75,0.8336353]
[1723817554725,20.0,139.76,139.75,0.8336353]
[1723817555630,50.0,139.76,139.75,0.8336353]
[1723817556177,20.0,139.76,139.75,0.8336353]
[1723817556676,50.0,139.76,139.75,0.8336353]
[1723817557963,20.0,139.76,139.75,0.8336353]
[1723817560275,20.0,139.82,139.75,0.8336353]
[1723817560471,8.31008133,139.84,139.75,0.8336353]
[1723817560671,20.0,139.83,139.75,0.8336353]
[1723817561258,21.12608035,139.83,139.75,0.8336353]
[1723817561494,0.12549,139.82,139.75,0.8336353]
[1723817561783,30.12549,139.76,139.75,0.8336353]
[1723817562083,50.25098,139.76,139.75,0.8336353]
[1723817562252,0.12549,139.75,139.65,382.4]
[1723817562448,20.25098,139.75,139.63,21.3768]
[1723817562655,20.25098,139.75,139.64,1.4299174]
[1723817562905,30.0,139.74,139.64,1.4299174]
[1723817563171,20.0,139.73,139.65,20.0]
[1723817563488,20.0,139.73,139.64,1.09603975]
[1723817563687,0.869,139.81,139.64,1.09603975]
[1723817563688,0.869,139.81,139.64,8.25788542]
[1723817563872,0.869,139.81,139.66,0.12549]
[1723817564186,0.869,139.81,139.66,0.37647]
[1723817564379,1.99508035,139.81,139.66,0.50196]
[1723817564547,0.12549,139.8,139.65,7.1606]
[1723817564750,0.12549,139.8,139.64,420.3024]
[1723817564989,0.12549,139.8,139.64,400.3024]
[1723817565168,0.12549,139.8,139.64,407.4635]
[1723817565370,0.25098,139.8,139.64,382.4]
[1723817565678,0.12549,139.78,139.64,382.4]
[1723817565875,0.12549,139.71,139.63,21.3768]
[1723817566061,20.25098,139.71,139.63,21.3768]
[1723817566258,20.25098,139.71,139.63,15.3444]
[1723817566671,20.0,139.7,139.63,15.3444]
[1723817566966,0.25098,139.71,139.61,0.8336353]
[1723817567457,0.869,139.7,139.61,0.8336353]
[1723817567698,0.12549,139.67,139.61,0.8336353]
[1723817567901,20.25098,139.67,139.61,0.8336353]
[1723817568081,20.25098,139.67,139.54,398.7647]
[1723817568402,0.12549,139.65,139.54,16.3647]
[1723817568689,50.25098,139.65,139.55,0.58818398]
[1723817568998,50.25098,139.65,139.43,40.0]
[1723817568999,0.12549,139.63,139.43,40.0]
[1723817569184,0.25098,139.63,139.41,62.7786]
[1723817569372,21.37706035,139.63,139.42,8.60445275]
[1723817569555,45.0,139.62,139.42,8.60445275]
[1723817569756,30.12549,139.6,139.43,1.43185004]
[1723817570060,0.12549,139.58,139.43,8.60385004]
[1723817570261,0.12549,139.58,139.43,20.0]
[1723817570573,0.12549,139.58,139.45,7.171]
[1723817570963,0.12549,139.58,139.44,25.0999]
[1723817571163,0.12549,139.58,139.44,17.9284]
[1723817571397,0.12549,139.58,139.47,1.75518787]
[1723817571595,30.12549,139.58,139.47,1.75518787]
[1723817571907,20.0,139.57,139.47,0.8336353]
[1723817572073,20.12549,139.57,139.47,0.8336353]
[1723817572257,0.12549,139.56,139.47,0.8336353]
[1723817572659,30.12549,139.56,139.47,0.8336353]
[1723817573155,20.0,139.55,139.47,0.8336353]
[1723817573377,30.0,139.56,139.47,0.8336353]
[1723817573604,2.90420927,139.59,139.48,0.38364533]
[1723817573811,7.44130906,139.6,139.49,0.38364962]
[1723817574111,0.12549,139.59,139.49,0.38364962]
[1723817574481,10.25225608,139.6,139.5,1.43281524]
[1723817574914,7.44130906,139.6,139.51,0.12549]
[1723817575071,0.869,139.64,139.51,0.12549]
[1723817575271,7.43082375,139.61,139.51,382.4]
[1723817575509,0.869,139.64,139.52,45.12549]
[1723817575681,3.71150833,139.64,139.52,45.12549]
[1723817575881,0.869,139.64,139.52,45.0]
[1723817576297,1.99508035,139.64,139.52,45.0]
[1723817576508,0.869,139.64,139.52,45.0]
[1723817577003,0.12549,139.63,139.52,52.1673]
[1723817577180,0.869,139.64,139.52,52.1673]
[1723817577700,0.869,139.64,139.53,7.41768]
[1723817577890,0.869,139.64,139.54,45.0]
[1723817578089,7.43006514,139.66,139.54,45.0]
[1723817578297,7.43006514,139.66,139.57,7.1643]
[1723817578507,0.869,139.71,139.58,45.25098]
[1723817578707,3.64954676,139.71,139.59,7.1638]
[1723817578981,3.64954676,139.71,139.6,45.0]
[1723817579210,3.64954676,139.71,139.59,7.28889]
[1723817579378,3.64954676,139.71,139.6,45.25098]
[1723817579807,3.64954676,139.71,139.6,52.41408]
[1723817580077,0.869,139.75,139.61,7.80474957]
[1723817580279,3.67615242,139.75,139.62,52.1621]
[1723817580491,8.29433059,139.75,139.63,20.12549]
[1723817580722,0.869,139.75,139.64,45.37647]
[1723817580943,0.869,139.75,139.64,45.0]
[1723817581305,0.869,139.75,139.65,1.43128754]
[1723817581842,0.869,139.75,139.66,1.43102787]
[1723817582150,7.4308612,139.77,139.69,7.1586]
[1723817582304,0.869,139.81,139.69,7.1586]
[1723817582305,0.869,139.81,139.7,0.80934979]
[1723817582511,0.869,139.81,139.7,45.80934979]
[1723817582706,0.869,139.81,139.7,45.0]
[1723817583157,0.869,139.81,139.71,1.68078167]
[1723817583438,0.869,139.81,139.67,41.33988]
[1723817583439,20.0,139.78,139.53,35.8696]
[1723817583749,21.78997018,139.77,139.53,35.8696]
[1723817583905,1.79001127,139.76,139.53,35.8696]
[1723817584113,20.0,139.75,139.53,35.8696]
[1723817584341,21.79014143,139.74,139.53,35.8696]
[1723817584642,29.06463258,139.73,139.53,15.8696]
[1723817584942,0.12549,139.71,139.53,15.8696]
[1723817585140,47.04141391,139.71,139.53,15.8696]
[1723817585436,0.12549,139.69,139.49,1.35199713]
[1723817585646,45.25098,139.69,139.49,1.35199713]
[1723817585814,0.12549,139.67,139.49,1.35199713]
[1723817586022,47.04172039,139.67,139.48,16.1175]
[1723817586346,0.12549,139.65,139.48,16.1175]
[1723817586552,45.25098,139.65,139.48,16.1175]
[1723817586722,0.12549,139.63,139.48,17.55049217]
[1723817586915,45.25098,139.63,139.48,16.1175]
[1723817587117,0.12549,139.61,139.48,16.1175]
[1723817587348,20.0,139.58,139.47,0.8336353]
[1723817587555,0.12549,139.56,139.34,27.1762]
[1723817587838,0.25098,139.56,139.37,20.0]
[1723817588043,0.25098,139.56,139.38,1.43394767]
[1723817588357,0.25098,139.56,139.39,1.43390925]
[1723817588652,0.25098,139.56,139.38,20.0]
[1723817589011,0.12549,139.54,139.35,27.1758]
[1723817589215,0.12549,139.54,139.35,20.0]
[1723817589637,0.12549,139.54,139.37,20.0]
[1723817589847,0.12549,139.54,139.38,1.43139217]
[1723817590647,20.0,139.64,139.4,20.12549]
[1723817590952,1.79172159,139.63,139.41,46.43108414]
[1723817591127,20.0,139.68,139.45,0.12549]
[1723817591456,20.0,139.69,139.45,46.9332956]
[1723817591457,20.0,139.66,139.45,46.9332956]
[1723817591744,1.79127149,139.65,139.45,45.12549]
[1723817592067,1.79127149,139.65,139.45,45.0]
[1723817592257,20.0,139.66,139.46,0.25098]
[1723817592407,1.79139439,139.64,139.46,0.25098]
[1723817592933,7.41979976,139.63,139.46,0.12549]
[1723817593122,21.79161323,139.62,139.39,20.0]
[1723817593330,21.79161323,139.62,139.4,0.12549]
[1723817593531,0.12549,139.61,139.39,382.4]
[1723817593725,1.91743208,139.61,139.39,382.4]
[1723817593934,0.12549,139.61,139.4,1.4325467]
[1723817594246,20.25098,139.61,139.42,47.1723]
[1723817594443,20.0,139.61,139.44,42.105]
[1723817594652,7.41979976,139.63,139.45,1.43299938]
[1723817594825,7.41979976,139.63,139.46,1.80936662]
[1723817595651,1.7911894,139.62,139.45,427.4]
[1723817595864,9.21119832,139.63,139.45,382.4]
[1723817596361,20.0,139.62,139.45,382.4]
[1723817596544,45.25098,139.61,139.45,382.4]
[1723817596863,20.0,139.6,139.46,1.43269494]
[1723817597038,20.0,139.6,139.46,46.43269494]
[1723817597369,20.0,139.62,139.46,46.43269494]
[1723817597933,0.12549,139.61,139.46,45.0]
[1723817598137,0.25098,139.61,139.46,45.0]
[1723817598754,40.0,139.62,139.47,0.12549]
[1723817598963,1.7913028,139.61,139.47,0.12549]
[1723817599268,44.68283814,139.62,139.45,382.4]
[1723817599462,1.79153516,139.61,139.45,382.4]
[1723817599666,1.79136719,139.6,139.45,382.4]
[1723817599963,0.12549,139.61,139.45,402.4]
[1723817600179,42.89134231,139.62,139.46,0.25098]
[1723817600340,22.89134231,139.62,139.47,27.1698]
[1723817600532,22.89134231,139.62,139.48,45.50196]
[1723817600726,22.89134231,139.62,139.48,45.0]
[1723817600932,1.79122437,139.61,139.47,382.4]
[1723817601154,22.89134231,139.62,139.47,382.4]
[1723817601357,1.79122301,139.61,139.47,382.4]
[1723817601562,22.39134231,139.62,139.48,0.25098]
[1723817601866,22.39134231,139.62,139.48,0.12549]
[1723817602056,22.39134231,139.62,139.44,22.105]
[1723817602366,22.39134231,139.62,139.44,29.2765]
[1723817602367,45.0,139.61,139.44,29.2765]
[1723817602842,0.12549,139.6,139.44,29.2765]
[1723817603043,20.25098,139.6,139.44,22.105]
[1723817603367,27.6716803,139.6,139.45,0.12549]
[1723817603576,27.6716803,139.6,139.45,45.50196]
[1723817603769,27.6716803,139.6,139.46,0.49401009]
[1723817604134,27.6716803,139.6,139.45,45.50196]
[1723817604977,27.6716803,139.6,139.46,1.43303044]
[1723817605152,27.6716803,139.6,139.45,45.0]
[1723817605342,0.12549,139.58,139.45,45.0]
[1723817605540,20.25098,139.58,139.45,45.0]
[1723817606077,7.4207003,139.6,139.45,65.0]
[1723817606241,7.4207003,139.6,139.45,85.0]
[1723817606446,7.4207003,139.6,139.47,20.0]
[1723817606664,7.4207003,139.6,139.49,20.0]
[1723817606843,7.4207003,139.6,139.51,20.0]
[1723817607173,10.25914745,139.6,139.52,22.41666]
[1723817607370,10.25914745,139.6,139.52,67.16568]
[1723817607553,10.25914745,139.6,139.52,67.04019]
[1723817607755,10.25914745,139.6,139.53,0.12549]
[1723817608058,10.25914745,139.6,139.52,67.04019]
[1723817608256,10.25914745,139.6,139.52,66.9147]
[1723817608461,10.25914745,139.6,139.53,0.25098]
[1723817608655,7.4207003,139.6,139.54,0.25098]
[1723817608840,49.92403272,139.77,139.56,0.12549]
[1723817609052,7.42373569,139.65,139.56,382.52549]
[1723817609254,1.79002306,139.75,139.57,45.37647]
[1723817609465,7.42344772,139.67,139.57,427.77647]
[1723817609668,7.42344772,139.67,139.58,0.12549]
[1723817609850,42.77503272,139.76,139.58,0.12549]
[1723817610164,7.149,139.8,139.58,0.12549]
[1723817610165,7.43453557,139.68,139.6,0.12549]
[1723817610475,36.13481633,139.75,139.61,22.5337]
[1723817610685,36.13481633,139.75,139.61,424.9337]
[1723817610845,36.13481633,139.75,139.62,45.0]
[1723817611039,7.43512933,139.75,139.62,45.0]
[1723817611258,7.43512933,139.75,139.62,46.43144812]
[1723817611764,10.32304758,139.75,139.63,0.25098]
[1723817611970,10.32304758,139.75,139.64,1.43114985]
[1723817612264,10.32304758,139.75,139.65,0.12549]
[1723817612440,10.32304758,139.75,139.64,382.4]
[1723817612640,10.32304758,139.75,139.65,45.25098]
[1723817612840,10.32304758,139.75,139.66,1.43110106]
[1723817613072,10.32304758,139.75,139.65,45.25098]
[1723817613365,10.32304758,139.75,139.65,45.12549]
[1723817614038,7.43512933,139.75,139.66,0.12549]
[1723817614239,0.8336353,139.82,139.66,1.68089832]
[1723817614467,7.4391163,139.76,139.66,383.95540832]
[1723817614667,0.8336353,139.82,139.67,45.12549]
[1723817614966,7.44225116,139.77,139.69,22.8059]
[1723817615273,0.8336353,139.82,139.7,46.93152232]
[1723817615565,7.44194228,139.81,139.71,1.42953525]
[1723817615867,7.44194228,139.81,139.73,0.12549]
[1723817616055,0.8336353,139.82,139.73,427.65098]
[1723817616248,0.8336353,139.82,139.74,0.12549]
[1723817616545,0.8336353,139.82,139.73,382.4]
[1723817616745,0.8336353,139.82,139.74,45.0]
[1723817616948,7.437657,139.81,139.74,45.0]
[1723817617549,20.0,139.8,139.74,45.0]
[1723817618141,0.8336353,139.82,139.74,45.0]
[1723817618347,0.8336353,139.82,139.75,0.37647]
[1723817618659,0.8336353,139.82,139.75,382.77647]
[1723817618842,0.8336353,139.82,139.77,0.12549]
[1723817619039,0.8336353,139.82,139.78,21.9574]
[1723817619281,0.8336353,139.82,139.79,45.0]
[1723817620850,0.8336353,139.82,139.8,0.12549]
[1723817621051,0.8336353,139.82,139.8,0.25098]
[1723817621274,0.8336353,139.82,139.79,45.0]
[1723817621447,0.8336353,139.82,139.8,0.25098]
[1723817622384,0.8336353,139.82,139.79,45.0]
[1723817622676,0.8336353,139.82,139.78,404.3574]
[1723817623254,0.8336353,139.82,139.78,21.9574]
[1723817624456,0.8336353,139.82,139.79,45.0]
[1723817624863,0.8336353,139.82,139.78,21.9574]
[1723817625679,0.8336353,139.82,139.72,22.6942]
[1723817625849,0.8336353,139.82,139.73,0.12549]
[1723817626281,0.8336353,139.82,139.72,405.0942]
[1723817627664,0.8336353,139.82,139.73,45.0]
[1723817629571,8.27974245,139.82,139.73,45.0]
[1723817629748,20.0,139.81,139.73,45.0]
[1723817631159,20.0,139.81,139.74,0.25098]
[1723817631455,8.27974245,139.82,139.75,0.12549]
[1723817631764,8.27974245,139.82,139.76,40.0]
[1723817631967,8.27974245,139.82,139.78,20.12549]
[1723817631968,0.8336353,139.82,139.78,20.12549]
[1723817632157,0.8336353,139.82,139.8,22.5104]
[1723817632351,0.8336353,139.82,139.81,0.25098]
[1723817632756,0.8336353,139.82,139.81,45.25098]
[1723817632957,0.8336353,139.82,139.81,45.12549]
[1723817633195,0.8336353,139.82,139.81,45.0]
[1723817633909,0.8336353,139.82,139.76,6.2636]
[1723817634879,0.8336353,139.82,139.77,0.53708638]
[1723817635177,0.8336353,139.82,139.76,6.2636]
[1723817635480,0.8336353,139.82,139.77,0.12549]
[1723817635681,0.8336353,139.82,139.77,65.50196]
[1723817635879,0.8336353,139.82,139.78,45.0]
[1723817636059,0.8336353,139.82,139.79,0.12549]
[1723817636259,0.8336353,139.82,139.78,45.0]
[1723817636480,0.8336353,139.82,139.77,45.25098]
[1723817636679,0.8336353,139.82,139.76,6.2636]
[1723817637454,0.8336353,139.82,139.75,16.2437]
[1723817637978,0.8336353,139.82,139.72,388.7319]
[1723817639291,0.8336353,139.82,139.73,0.25098]
[1723817639471,0.8336353,139.82,139.73,1.68117438]
[1723817639668,0.8336353,139.82,139.73,0.12549]
[1723817639867,0.8336353,139.82,139.72,388.7319]
[1723817640273,0.8336353,139.82,139.73,0.12549]
[1723817640784,0.8336353,139.82,139.72,388.7319]
[1723817641190,0.8336353,139.82,139.72,6.3319]
[1723817641365,0.25098,139.81,139.69,640.2]
[1723817642566,2.03946913,139.81,139.69,640.2]
[1723817642979,0.12549,139.79,139.69,640.2]
[1723817643288,20.25098,139.79,139.69,640.2]
[1723817644188,1.78849015,139.78,139.69,640.2]
[1723817644360,0.12549,139.77,139.69,640.2]
[1723817644688,0.25098,139.77,139.64,22.2555]
[1723817644985,0.12549,139.77,139.64,22.2555]
[1723817645481,45.25098,139.78,139.64,22.2555]
[1723817645680,0.12549,139.76,139.64,22.2555]
[1723817646066,50.0,139.77,139.64,22.2555]
[1723817646267,20.0,139.77,139.64,22.2555]
[1723817646481,0.12549,139.77,139.64,22.2555]
[1723817646972,0.12549,139.77,139.65,45.37647]
[1723817647556,0.12549,139.77,139.65,45.0]
[1723817647773,0.12549,139.75,139.64,22.2555]
[1723817647959,20.25098,139.75,139.64,22.2555]
[1723817648761,22.04002279,139.75,139.64,15.5908]
[1723817648969,22.04002279,139.75,139.62,382.4]
[1723817649169,20.25098,139.75,139.62,382.4]
[1723817649495,20.12549,139.75,139.62,402.4]
[1723817649680,20.0,139.75,139.62,402.4]
[1723817649867,20.0,139.75,139.63,0.12549]
[1723817650205,20.0,139.75,139.63,427.90196]
[1723817650481,20.0,139.75,139.63,427.65098]
[1723817651364,0.25098,139.76,139.63,427.65098]
[1723817651772,0.12549,139.76,139.63,427.65098]
[1723817652180,2.99528083,139.76,139.63,427.65098]
[1723817652381,20.0,139.79,139.64,20.25098]
[1723817652573,20.0,139.79,139.65,45.25098]
[1723817653275,9.23281068,139.78,139.66,45.0]
[1723817653491,20.0,139.77,139.64,45.0]
[1723817653712,20.0,139.77,139.65,0.50196]
[1723817653881,0.12549,139.76,139.64,45.0]
[1723817654193,20.0,139.77,139.65,0.25098]
[1723817654364,0.12549,139.76,139.65,0.25098]
[1723817654565,2.03986002,139.76,139.64,45.0]
[1723817654764,0.25098,139.76,139.64,45.0]
[1723817655683,0.12549,139.77,139.64,45.0]
[1723817655993,0.25098,139.77,139.64,427.4]
[1723817656188,0.12549,139.77,139.65,0.25098]
[1723817656387,7.44399799,139.78,139.65,0.37647]
[1723817656585,10.29825128,139.78,139.66,0.12549]
[1723817657087,10.29825128,139.78,139.68,0.12549]
[1723817657291,10.29825128,139.78,139.7,0.12549]
[1723817657292,7.44399799,139.78,139.7,0.12549]
[1723817657482,2.8925902,139.81,139.7,427.4]
[1723817657689,7.44638952,139.8,139.7,382.4]
[1723817657895,7.44638952,139.8,139.71,45.0]
[1723817659780,7.44638952,139.8,139.72,0.12549]
[1723817659983,7.44638952,139.8,139.72,1.55368126]
[1723817660482,7.44638952,139.8,139.72,0.12549]
[1723817660679,7.44638952,139.8,139.72,0.25098]
[1723817661992,7.44638952,139.8,139.72,382.65098]
[1723817662180,7.44638952,139.8,139.75,0.12549]
[1723817662384,0.8336353,139.82,139.75,0.50196]
[1723817662786,0.8336353,139.82,139.75,45.50196]
[1723817663091,0.8336353,139.82,139.75,65.50196]
[1723817663613,0.8336353,139.82,139.75,45.50196]
[1723817663775,0.8336353,139.82,139.75,65.50196]
[1723817664092,0.8336353,139.82,139.75,45.50196]
[1723817664799,0.8336353,139.82,139.75,45.12549]
[1723817665001,0.8336353,139.82,139.75,45.0]
[1723817665493,0.8336353,139.82,139.75,1.43004509]
[1723817666393,0.8336353,139.82,139.75,21.43004509]
[1723817666585,0.8336353,139.82,139.76,45.50196]
[1723817666784,0.8336353,139.82,139.76,427.90196]
[1723817667185,0.8336353,139.82,139.78,22.79319]
[1723817667378,0.8336353,139.82,139.79,45.37647]
[1723817667779,0.8336353,139.82,139.79,45.12549]
[1723817667997,0.8336353,139.82,139.79,45.0]
[1723817668402,0.8336353,139.82,139.76,382.4]
[1723817669104,0.8336353,139.82,139.77,20.0]
[1723817669699,0.8336353,139.82,139.76,382.4]
[1723817669890,0.8336353,139.82,139.77,20.0]
[1723817670092,0.8336353,139.82,139.78,45.50196]
[1723817670284,0.8336353,139.82,139.79,20.0]
[1723817670487,0.8336353,139.82,139.8,45.50196]
[1723817670900,0.8336353,139.82,139.81,15.2944]
[1723817671215,0.8336353,139.82,139.81,66.80676]
[1723817673201,0.8336353,139.82,139.81,113.95926]
[1723817673379,0.8336353,139.82,139.81,66.80676]
[1723817674701,0.8336353,139.82,139.81,66.55578]
[1723817675576,0.8336353,139.82,139.81,45.25098]
[1723817676290,0.8336353,139.82,139.81,45.50196]
[1723817676885,0.8336353,139.82,139.81,427.90196]
[1723817680206,0.8336353,139.82,139.81,447.90196]
[1723817683186,0.8336353,139.82,139.81,455.05446]
[1723817683604,20.0,139.92,139.83,20.0]
[1723817683807,20.0,139.92,139.84,45.50196]
[1723817684006,0.8336353,139.96,139.85,20.0]
[1723817684310,8.27779028,139.96,139.86,45.37647]
[1723817684515,8.27779028,139.96,139.86,45.25098]
[1723817684687,8.27779028,139.96,139.86,45.12549]
[1723817684688,11.12207985,139.96,139.86,45.12549]
[1723817685225,20.0,139.95,139.86,45.12549]
[1723817685994,11.12207985,139.96,139.87,0.12549]
[1723817686199,0.8336353,139.96,139.87,0.37647]
[1723817686515,0.8336353,139.96,139.88,0.12549]
[1723817687122,0.8336353,139.96,139.87,0.25098]
[1723817687289,0.8336353,139.96,139.88,0.12549]
[1723817688285,0.8336353,139.96,139.88,0.25098]
[1723817688789,0.8336353,139.96,139.89,0.12549]
[1723817688991,0.8336353,139.96,139.89,45.12549]
[1723817689306,0.8336353,139.96,139.9,1.42725275]
[1723817689909,0.8336353,139.96,139.89,45.12549]
[1723817692203,0.8336353,139.96,139.9,0.12549]
[1723817694998,7.44390894,139.98,139.91,42.4165]
[1723817695204,28.64438,140.03,139.92,45.50196]
[1723817695417,28.64438,140.03,139.94,0.12549]
[1723817695618,7.44185677,140.06,139.94,45.50196]
[1723817696023,1.6670353,140.1,139.96,0.12549]
[1723817696228,1.6670353,140.1,139.98,0.12549]
[1723817696522,1.6670353,140.1,139.98,65.50196]
[1723817696898,4.54663517,140.1,139.98,65.50196]
[1723817697101,3.71323517,140.1,140.01,0.12549]
[1723817697297,0.8336353,140.1,140.03,22.5881]
[1723817697502,0.8336353,140.1,140.04,45.0]
[1723817697918,0.8336353,140.1,140.01,0.12549]
[1723817698102,0.8336353,140.1,140.0,45.0]
[1723817699307,0.25098,140.09,140.0,45.0]
[1723817700428,0.25098,140.09,139.94,22.1262]
[1723817700639,0.25098,140.09,139.95,0.12549]
[1723817700807,0.12549,140.07,139.94,22.1262]
[1723817701007,0.25098,140.07,139.94,22.1262]
[1723817701405,2.03602377,140.07,139.94,22.1262]
[1723817701611,0.25098,140.07,139.94,22.1262]
[1723817701825,0.25098,140.07,139.94,42.1262]
[1723817702136,0.25098,140.07,139.95,20.12549]
[1723817702428,0.8334,140.08,139.96,0.25098]
[1723817702633,0.8334,140.08,139.97,0.37647]
[1723817702836,0.8336353,140.1,139.98,0.12549]
[1723817703047,0.8336353,140.1,139.98,46.5496733]
[1723817703233,0.8336353,140.1,139.99,0.37647]
[1723817703434,0.8336353,140.1,140.0,1.42406622]
[1723817703613,0.8336353,140.1,140.01,0.25098]
[1723817703811,3.69494925,140.1,140.02,1.42572449]
[1723817704020,0.8336353,140.1,140.02,1.42572449]
[1723817704541,0.8336353,140.1,140.01,0.25098]
[1723817704735,0.8336353,140.1,140.0,0.12549]
[1723817704945,0.8336353,140.1,140.0,45.50196]
[1723817705113,0.8336353,140.1,140.02,0.12549]
[1723817705312,0.8336353,140.1,140.04,0.12549]
[1723817705615,0.8336353,140.1,140.04,45.50196]
[1723817705917,0.8336353,140.1,140.06,0.12549]
[1723817706108,0.8336353,140.1,140.06,0.25098]
[1723817706422,0.8336353,140.1,140.04,45.12549]
[1723817706617,0.8336353,140.1,140.05,0.12549]
[1723817706816,0.8336353,140.1,140.05,0.25098]
[1723817707531,0.8336353,140.1,140.06,0.12549]
[1723817707704,0.8336353,140.1,140.06,0.25098]
[1723817707910,0.8336353,140.1,140.07,0.25098]
[1723817708132,0.8336353,140.1,140.08,0.12549]
[1723817708309,0.8336353,140.1,140.06,0.12549]
[1723817708633,0.8336353,140.1,140.06,20.25098]
[1723817708936,0.8336353,140.1,140.09,21.68009]
[1723817709139,0.8336353,140.1,140.09,22.05656]
[1723817709315,0.8336353,140.1,140.09,67.05656]
[1723817710134,8.27606188,140.24,140.13,20.0]
[1723817710437,3.62092904,140.24,140.14,0.50196]
[1723817710632,8.27377659,140.24,140.14,0.50196]
[1723817710829,0.8336353,140.24,140.16,16.65639]